[Event "Titled Tuesday Blitz November 15 Late 2022"]
[White "Luxama, Jacques Muller"]
[Black "Bayo Milagro, Alvaro"]
[WhiteFideId "11900113"]
[BlackFideId "22275240"]
[WhiteElo "1931"]
[BlackElo "2270"]
[Result "0-1"]
[Round "01"]
[TimeControl "180+1"]
[Date "2022.11.16"]
[WhiteClock "0:00:02"]
[BlackClock "0:00:04"]

1. e4 {[%clk 0:03:00]}  c5 {[%clk 0:02:58]} 2. Nf3 {[%clk 0:03:00]}  d6 {[%clk 0:02:56]} 3. d4 {[%clk 0:03:00]}  cxd4 {[%clk 0:02:57]} 4. Nxd4 {[%clk 0:03:01]}  Nf6 {[%clk 0:02:57]} 5. Nc3 {[%clk 0:03:00]}  g6 {[%clk 0:02:57]} 6. Be3 {[%clk 0:02:57]}  Bg7 {[%clk 0:02:58]} 7. Bc4 {[%clk 0:02:53]}  O-O {[%clk 0:02:54]} 8. f3 {[%clk 0:02:51]}  Nc6 {[%clk 0:02:53]} 9. Bb3 {[%clk 0:02:50]}  Bd7 {[%clk 0:02:47]} 10. Qd2 {[%clk 0:02:49]}  Nxd4 {[%clk 0:02:46]} 11. Bxd4 {[%clk 0:02:48]}  b5 {[%clk 0:02:46]} 12. Nd5 {[%clk 0:02:41]}  Nxd5 {[%clk 0:02:45]} 13. Bxg7 {[%clk 0:02:40]}  Kxg7 {[%clk 0:02:44]} 14. exd5 {[%clk 0:02:39]}  a5 {[%clk 0:02:41]} 15. a3 {[%clk 0:02:39]}  a4 {[%clk 0:02:37]} 16. Ba2 {[%clk 0:02:38]}  Qb6 {[%clk 0:02:37]} 17. c3 {[%clk 0:02:35]}  Rac8 {[%clk 0:02:36]} 18. O-O-O {[%clk 0:02:34]}  b4 {[%clk 0:02:33]} 19. axb4 {[%clk 0:02:29]}  Qxb4 {[%clk 0:02:30]} 20. Qd4+ {[%clk 0:02:29]}  Qxd4 {[%clk 0:02:30]} 21. Rxd4 {[%clk 0:02:30]}  a3 {[%clk 0:02:31]} 22. Re1 {[%clk 0:02:07]}  axb2+ {[%clk 0:02:25]} 23. Kxb2 {[%clk 0:02:07]}  Rfe8 {[%clk 0:02:26]} 24. Rde4 {[%clk 0:02:04]}  Kf8 {[%clk 0:02:24]} 25. Rb4 {[%clk 0:02:00]}  h5 {[%clk 0:02:19]} 26. Bb3 {[%clk 0:01:59]}  Rc5 {[%clk 0:02:15]} 27. Ra1 {[%clk 0:01:58]}  Rec8 {[%clk 0:02:12]} 28. c4 {[%clk 0:01:56]}  Bf5 {[%clk 0:02:09]} 29. Ra7 {[%clk 0:01:53]}  R5c7 {[%clk 0:02:09]} 30. Rbb7 {[%clk 0:01:52]}  Rxb7 {[%clk 0:02:09]} 31. Rxb7 {[%clk 0:01:52]}  Bd3 {[%clk 0:02:06]} 32. Kc3 {[%clk 0:01:50]}  Be2 {[%clk 0:02:06]} 33. Kd4 {[%clk 0:01:47]}  g5 {[%clk 0:02:05]} 34. Rb4 {[%clk 0:01:45]}  Bf1 {[%clk 0:01:13]} 35. g3 {[%clk 0:01:43]}  Kg7 {[%clk 0:01:13]} 36. Rb7 {[%clk 0:01:40]}  Kf6 {[%clk 0:01:13]} 37. Ra7 {[%clk 0:01:27]}  Rb8 {[%clk 0:01:10]} 38. Kc3 {[%clk 0:01:26]}  h4 {[%clk 0:01:07]} 39. Ra1 {[%clk 0:01:23]}  Be2 {[%clk 0:01:01]} 40. gxh4 {[%clk 0:01:21]}  gxh4 {[%clk 0:00:59]} 41. Re1 {[%clk 0:01:19]}  Bd3 {[%clk 0:00:48]} 42. Rg1 {[%clk 0:01:03]}  Bf5 {[%clk 0:00:47]} 43. Ra1 {[%clk 0:00:57]}  Rg8 {[%clk 0:00:46]} 44. Rd1 {[%clk 0:00:51]}  Rg2 {[%clk 0:00:41]} 45. Rd2 {[%clk 0:00:51]}  h3 {[%clk 0:00:39]} 46. f4 {[%clk 0:00:48]}  Kg6 {[%clk 0:00:35]} 47. Bd1 {[%clk 0:00:47]}  Be4 {[%clk 0:00:23]} 48. Ba4 {[%clk 0:00:30]}  Kf5 {[%clk 0:00:20]} 49. Be8 {[%clk 0:00:29]}  f6 {[%clk 0:00:14]} 50. Bd7+ {[%clk 0:00:29]}  Kxf4 {[%clk 0:00:14]} 51. Bxh3 {[%clk 0:00:28]}  Rg1 {[%clk 0:00:08]} 52. Be6 {[%clk 0:00:25]}  Ke3 {[%clk 0:00:07]} 53. Ra2 {[%clk 0:00:22]}  f5 {[%clk 0:00:07]} 54. Ra7 {[%clk 0:00:19]}  f4 {[%clk 0:00:07]} 55. Rxe7 {[%clk 0:00:19]}  Rc1+ {[%clk 0:00:02]} 56. Kb2 {[%clk 0:00:17]}  Rc2+ {[%clk 0:00:02]} 57. Kb3 {[%clk 0:00:17]}  Kd4 {[%clk 0:00:02]} 58. Bg8 {[%clk 0:00:13]}  Rc3+ {[%clk 0:00:01]} 59. Kb2 {[%clk 0:00:13]}  Rh3 {[%clk 0:00:02]} 60. Rf7 {[%clk 0:00:06]}  Rxh2+ {[%clk 0:00:02]} 61. Kb3 {[%clk 0:00:04]}  f3 {[%clk 0:00:03]} 62. Rf6 {[%clk 0:00:03]}  f2 {[%clk 0:00:03]} 63. Be6 {[%clk 0:00:02]}  Bd3 {[%clk 0:00:04]} 0-1


[Site "https://www.chess.com"]

[Event "Titled Tuesday Blitz November 15 Late 2022"]
[White "Madaminov, Mukhiddin"]
[Black "Hajiyev, Kanan"]
[WhiteFideId "14210703"]
[BlackFideId "13404148"]
[WhiteElo "2341"]
[BlackElo "2118"]
[Result "1-0"]
[Round "01"]
[TimeControl "180+1"]
[Date "2022.11.16"]
[WhiteClock "0:00:45"]
[BlackClock "0:01:16"]

1. d4 {[%clk 0:03:00]}  d5 {[%clk 0:02:59]} 2. Nc3 {[%clk 0:03:00]}  c6 {[%clk 0:02:59]} 3. Bf4 {[%clk 0:03:01]}  a6 {[%clk 0:03:00]} 4. e3 {[%clk 0:03:01]}  Qb6 {[%clk 0:03:00]} 5. Na4 {[%clk 0:02:58]}  Qa5+ {[%clk 0:02:58]} 6. c3 {[%clk 0:02:58]}  Qd8 {[%clk 0:02:59]} 7. Nf3 {[%clk 0:02:52]}  Nf6 {[%clk 0:02:58]} 8. Ne5 {[%clk 0:02:50]}  Nbd7 {[%clk 0:02:56]} 9. Bd3 {[%clk 0:02:46]}  Nxe5 {[%clk 0:02:56]} 10. dxe5 {[%clk 0:02:45]}  Nd7 {[%clk 0:02:53]} 11. e6 {[%clk 0:02:45]}  Nf6 {[%clk 0:02:50]} 12. exf7+ {[%clk 0:02:25]}  Kxf7 {[%clk 0:02:51]} 13. b3 {[%clk 0:02:24]}  b5 {[%clk 0:02:50]} 14. Nb2 {[%clk 0:02:24]}  Bg4 {[%clk 0:02:48]} 15. f3 {[%clk 0:02:23]}  Bh5 {[%clk 0:02:48]} 16. O-O {[%clk 0:02:23]}  e6 {[%clk 0:02:47]} 17. a4 {[%clk 0:02:21]}  Bd6 {[%clk 0:02:44]} 18. axb5 {[%clk 0:02:21]}  cxb5 {[%clk 0:02:42]} 19. Bxd6 {[%clk 0:02:12]}  Qxd6 {[%clk 0:02:43]} 20. c4 {[%clk 0:02:12]}  dxc4 {[%clk 0:02:31]} 21. bxc4 {[%clk 0:01:58]}  Qe5 {[%clk 0:02:27]} 22. Qe2 {[%clk 0:01:57]}  Rhd8 {[%clk 0:02:20]} 23. cxb5 {[%clk 0:01:19]}  axb5 {[%clk 0:02:21]} 24. Rxa8 {[%clk 0:01:19]}  Rxa8 {[%clk 0:02:22]} 25. Bb1 {[%clk 0:01:20]}  Bg6 {[%clk 0:02:13]} 26. Bxg6+ {[%clk 0:01:18]}  Kxg6 {[%clk 0:02:12]} 27. Nd3 {[%clk 0:01:19]}  Qc3 {[%clk 0:02:05]} 28. Rc1 {[%clk 0:01:12]}  Ra1 {[%clk 0:02:04]} 29. Rxa1 {[%clk 0:01:09]}  Qxa1+ {[%clk 0:02:05]} 30. Kf2 {[%clk 0:01:10]}  Qc3 {[%clk 0:01:58]} 31. Nf4+ {[%clk 0:01:08]}  Kf7 {[%clk 0:01:52]} 32. Qxb5 {[%clk 0:01:09]}  Qd2+ {[%clk 0:01:43]} 33. Ne2 {[%clk 0:01:08]}  Nd5 {[%clk 0:01:41]} 34. Qd7+ {[%clk 0:00:49]}  Kf6 {[%clk 0:01:40]} 35. e4 {[%clk 0:00:50]}  Qe3+ {[%clk 0:01:36]} 36. Kf1 {[%clk 0:00:50]}  Nf4 {[%clk 0:01:17]} 37. Qd8+ {[%clk 0:00:46]}  Kf7 {[%clk 0:01:16]} 38. Qc7+ {[%clk 0:00:45]} 1-0


[Site "https://www.chess.com"]

[Event "Titled Tuesday Blitz November 15 Late 2022"]
[White "Manukyan, Sargis A."]
[Black "Nakamura, Hikaru"]
[WhiteFideId "13303970"]
[BlackFideId "2016192"]
[WhiteElo "2187"]
[BlackElo "2909"]
[Result "0-1"]
[Round "01"]
[TimeControl "180+1"]
[Date "2022.11.15"]
[WhiteClock "0:00:01"]
[BlackClock "0:01:38"]

1. d4 {[%clk 0:02:59]}  g6 {[%clk 0:02:59]} 2. c4 {[%clk 0:02:58]}  Bg7 {[%clk 0:02:59]} 3. Nc3 {[%clk 0:02:59]}  c5 {[%clk 0:03:00]} 4. d5 {[%clk 0:02:59]}  Bxc3+ {[%clk 0:03:00]} 5. bxc3 {[%clk 0:02:59]}  Qa5 {[%clk 0:03:01]} 6. Qc2 {[%clk 0:02:57]}  f5 {[%clk 0:03:01]} 7. e4 {[%clk 0:02:57]}  fxe4 {[%clk 0:03:01]} 8. f3 {[%clk 0:02:58]}  Nf6 {[%clk 0:03:00]} 9. Bg5 {[%clk 0:02:53]}  d6 {[%clk 0:02:58]} 10. fxe4 {[%clk 0:02:19]}  Nbd7 {[%clk 0:02:56]} 11. Nf3 {[%clk 0:02:13]}  Ng4 {[%clk 0:02:56]} 12. Be2 {[%clk 0:02:04]}  h6 {[%clk 0:02:55]} 13. Bd2 {[%clk 0:01:51]}  g5 {[%clk 0:02:51]} 14. O-O {[%clk 0:01:48]}  Nde5 {[%clk 0:02:51]} 15. Nxe5 {[%clk 0:01:46]}  Nxe5 {[%clk 0:02:52]} 16. Bh5+ {[%clk 0:01:45]}  Kd8 {[%clk 0:02:52]} 17. Rab1 {[%clk 0:01:29]}  Qa6 {[%clk 0:02:50]} 18. Be2 {[%clk 0:01:25]}  Bd7 {[%clk 0:02:48]} 19. h4 {[%clk 0:01:22]}  gxh4 {[%clk 0:02:41]} 20. Bf4 {[%clk 0:01:10]}  Rg8 {[%clk 0:02:40]} 21. Kh2 {[%clk 0:00:46]}  Kc7 {[%clk 0:02:39]} 22. Bxe5 {[%clk 0:00:37]}  dxe5 {[%clk 0:02:39]} 23. Qd2 {[%clk 0:00:31]}  Qg6 {[%clk 0:02:34]} 24. Bf3 {[%clk 0:00:15]}  b6 {[%clk 0:02:29]} 25. d6+ {[%clk 0:00:08]}  exd6 {[%clk 0:02:28]} 26. Rbd1 {[%clk 0:00:08]}  Rad8 {[%clk 0:02:24]} 27. Bh5 {[%clk 0:00:08]}  Qxh5 {[%clk 0:02:17]} 28. Qxd6+ {[%clk 0:00:07]}  Kc8 {[%clk 0:02:18]} 29. Qd5 {[%clk 0:00:07]}  Rxg2+ {[%clk 0:01:38]} 30. Kh1 {[%clk 0:00:03]}  Rxa2 {[%clk 0:01:39]} 31. Qa8+ {[%clk 0:00:02]}  Kc7 {[%clk 0:01:39]} 32. Rxd7+ {[%clk 0:00:01]}  Rxd7 {[%clk 0:01:38]} 0-1


[Site "https://www.chess.com"]

[Event "Titled Tuesday Blitz November 15 Late 2022"]
[White "Martinez Reyes, Pedro Ramon"]
[Black "Young, Ryan"]
[WhiteFideId "3901807"]
[BlackFideId "2049945"]
[WhiteElo "2354"]
[BlackElo "2291"]
[Result "1/2-1/2"]
[Round "01"]
[TimeControl "180+1"]
[Date "2022.11.16"]
[WhiteClock "0:00:56"]
[BlackClock "0:00:35"]

1. Nf3 {[%clk 0:03:00]}  Nf6 {[%clk 0:02:58]} 2. b3 {[%clk 0:02:59]}  g6 {[%clk 0:02:58]} 3. Bb2 {[%clk 0:03:00]}  Bg7 {[%clk 0:02:58]} 4. c4 {[%clk 0:02:59]}  O-O {[%clk 0:02:56]} 5. g3 {[%clk 0:03:00]}  d6 {[%clk 0:02:56]} 6. d4 {[%clk 0:02:59]}  Nbd7 {[%clk 0:02:49]} 7. Bg2 {[%clk 0:02:58]}  c5 {[%clk 0:02:48]} 8. O-O {[%clk 0:02:55]}  cxd4 {[%clk 0:02:48]} 9. Nxd4 {[%clk 0:02:55]}  Nc5 {[%clk 0:02:46]} 10. Nc3 {[%clk 0:02:56]}  a6 {[%clk 0:02:44]} 11. Rc1 {[%clk 0:02:53]}  Qc7 {[%clk 0:02:41]} 12. b4 {[%clk 0:02:42]}  Ne6 {[%clk 0:02:37]} 13. Nd5 {[%clk 0:02:41]}  Qd8 {[%clk 0:02:36]} 14. Nxe6 {[%clk 0:02:35]}  fxe6 {[%clk 0:02:35]} 15. Nf4 {[%clk 0:02:26]}  e5 {[%clk 0:02:28]} 16. Nd5 {[%clk 0:02:25]}  Rb8 {[%clk 0:02:20]} 17. e3 {[%clk 0:02:17]}  Be6 {[%clk 0:02:20]} 18. Nxf6+ {[%clk 0:02:15]}  Bxf6 {[%clk 0:02:16]} 19. Bd5 {[%clk 0:02:14]}  Qd7 {[%clk 0:02:13]} 20. Qg4 {[%clk 0:02:13]}  Kf7 {[%clk 0:02:10]} 21. f4 {[%clk 0:02:13]}  Rbd8 {[%clk 0:01:40]} 22. fxe5 {[%clk 0:02:13]}  dxe5 {[%clk 0:01:39]} 23. Rcd1 {[%clk 0:01:42]}  Bxd5 {[%clk 0:01:35]} 24. Qxd7 {[%clk 0:01:42]}  Rxd7 {[%clk 0:01:36]} 25. cxd5 {[%clk 0:01:40]}  Kg7 {[%clk 0:01:28]} 26. e4 {[%clk 0:01:34]}  Rc8 {[%clk 0:01:28]} 27. Rc1 {[%clk 0:01:34]}  Rdc7 {[%clk 0:01:26]} 28. Rxc7 {[%clk 0:01:34]}  Rxc7 {[%clk 0:01:26]} 29. Rc1 {[%clk 0:01:35]}  Rxc1+ {[%clk 0:01:26]} 30. Bxc1 {[%clk 0:01:36]}  Kf7 {[%clk 0:01:26]} 31. Kf2 {[%clk 0:01:36]}  e6 {[%clk 0:01:26]} 32. Ke2 {[%clk 0:01:30]}  b5 {[%clk 0:01:23]} 33. Kd3 {[%clk 0:01:30]}  Ke7 {[%clk 0:01:23]} 34. Be3 {[%clk 0:01:29]}  Kd7 {[%clk 0:01:20]} 35. Bc5 {[%clk 0:01:29]}  Bg5 {[%clk 0:01:18]} 36. h3 {[%clk 0:01:28]}  h5 {[%clk 0:01:17]} 37. g4 {[%clk 0:01:28]}  hxg4 {[%clk 0:01:17]} 38. hxg4 {[%clk 0:01:29]}  Bf6 {[%clk 0:01:17]} 39. Kc2 {[%clk 0:01:26]}  Bg5 {[%clk 0:01:15]} 40. Kb3 {[%clk 0:01:23]}  Bf4 {[%clk 0:01:14]} 41. Kc2 {[%clk 0:01:20]}  Bg5 {[%clk 0:01:13]} 42. Kd3 {[%clk 0:01:21]}  Bh6 {[%clk 0:01:14]} 43. Ke2 {[%clk 0:01:20]}  Bg5 {[%clk 0:01:13]} 44. Kf3 {[%clk 0:01:21]}  Bh6 {[%clk 0:01:13]} 45. Kg3 {[%clk 0:01:17]}  Bg5 {[%clk 0:01:08]} 46. Kf3 {[%clk 0:01:13]}  Bh6 {[%clk 0:01:08]} 47. Ba7 {[%clk 0:01:13]}  Bg5 {[%clk 0:01:06]} 48. Bb8 {[%clk 0:01:14]}  Bf6 {[%clk 0:01:01]} 49. Ke2 {[%clk 0:01:08]}  Bg7 {[%clk 0:00:54]} 50. Kd3 {[%clk 0:01:01]}  Bf6 {[%clk 0:00:52]} 51. Kc2 {[%clk 0:01:01]}  Bg7 {[%clk 0:00:50]} 52. Kb3 {[%clk 0:01:02]}  Bf6 {[%clk 0:00:51]} 53. a4 {[%clk 0:01:02]}  Bg7 {[%clk 0:00:51]} 54. axb5 {[%clk 0:01:02]}  axb5 {[%clk 0:00:51]} 55. Kc2 {[%clk 0:01:02]}  Bf6 {[%clk 0:00:51]} 56. Kd3 {[%clk 0:01:02]}  Bg7 {[%clk 0:00:51]} 57. Ke3 {[%clk 0:01:02]}  Bf6 {[%clk 0:00:50]} 58. Kf3 {[%clk 0:01:03]}  Ke7 {[%clk 0:00:48]} 59. Kg3 {[%clk 0:00:56]}  Kd7 {[%clk 0:00:45]} 60. Kh3 {[%clk 0:00:55]}  Ke7 {[%clk 0:00:45]} 61. Ba7 {[%clk 0:00:53]}  Kd7 {[%clk 0:00:44]} 62. Bc5 {[%clk 0:00:53]}  Bg5 {[%clk 0:00:44]} 63. Kg2 {[%clk 0:00:53]}  Bh6 {[%clk 0:00:43]} 64. Kf3 {[%clk 0:00:53]}  Bg5 {[%clk 0:00:43]} 65. Be3 {[%clk 0:00:54]}  Bxe3 {[%clk 0:00:35]} 66. Kxe3 {[%clk 0:00:55]}  g5 {[%clk 0:00:35]} 67. Kd2 {[%clk 0:00:54]}  Kd6 {[%clk 0:00:35]} 68. dxe6 {[%clk 0:00:52]}  Kxe6 {[%clk 0:00:36]} 69. Kd3 {[%clk 0:00:53]}  Kd6 {[%clk 0:00:36]} 70. Ke3 {[%clk 0:00:53]}  Ke6 {[%clk 0:00:34]} 71. Kd3 {[%clk 0:00:54]}  Kd6 {[%clk 0:00:35]} 72. Ke3 {[%clk 0:00:55]}  Ke6 {[%clk 0:00:35]} 73. Kd3 {[%clk 0:00:56]} 1/2-1/2


[Site "https://www.chess.com"]

[Event "Titled Tuesday Blitz November 15 Late 2022"]
[White "Melikhov, Evgeny V."]
[Black "Goltsev, Dmitry"]
[WhiteFideId "4122046"]
[BlackFideId "24176710"]
[WhiteElo "2169"]
[BlackElo "2289"]
[Result "0-1"]
[Round "01"]
[TimeControl "180+1"]
[Date "2022.11.16"]
[WhiteClock "0:00:16"]
[BlackClock "0:01:59"]

1. d4 {[%clk 0:03:00]}  Nf6 {[%clk 0:02:58]} 2. c4 {[%clk 0:03:00]}  e6 {[%clk 0:02:58]} 3. Nc3 {[%clk 0:03:00]}  Bb4 {[%clk 0:02:58]} 4. Qc2 {[%clk 0:03:00]}  Qe7 {[%clk 0:02:58]} 5. a3 {[%clk 0:02:51]}  Bxc3+ {[%clk 0:02:57]} 6. Qxc3 {[%clk 0:02:51]}  b6 {[%clk 0:02:58]} 7. Nf3 {[%clk 0:02:50]}  Bb7 {[%clk 0:02:58]} 8. e3 {[%clk 0:02:50]}  a5 {[%clk 0:02:57]} 9. b3 {[%clk 0:02:49]}  d6 {[%clk 0:02:57]} 10. Be2 {[%clk 0:02:48]}  Nbd7 {[%clk 0:02:57]} 11. Bb2 {[%clk 0:02:48]}  Ne4 {[%clk 0:02:57]} 12. Qc2 {[%clk 0:02:47]}  f5 {[%clk 0:02:58]} 13. O-O {[%clk 0:02:44]}  O-O {[%clk 0:02:58]} 14. Rad1 {[%clk 0:02:38]}  g5 {[%clk 0:02:57]} 15. d5 {[%clk 0:02:37]}  e5 {[%clk 0:02:55]} 16. Nd2 {[%clk 0:02:35]}  Nxd2 {[%clk 0:02:52]} 17. Rxd2 {[%clk 0:02:27]}  Nc5 {[%clk 0:02:51]} 18. f3 {[%clk 0:02:11]}  c6 {[%clk 0:02:43]} 19. dxc6 {[%clk 0:02:00]}  Bxc6 {[%clk 0:02:44]} 20. Rfd1 {[%clk 0:01:57]}  Rf6 {[%clk 0:02:39]} 21. Qc3 {[%clk 0:01:11]}  Raf8 {[%clk 0:02:31]} 22. Rf1 {[%clk 0:00:49]}  Rg6 {[%clk 0:02:26]} 23. Bd1 {[%clk 0:00:48]}  g4 {[%clk 0:02:24]} 24. fxg4 {[%clk 0:00:44]}  Ne4 {[%clk 0:02:24]} 25. Qc2 {[%clk 0:00:36]}  Nxd2 {[%clk 0:02:23]} 26. Qxd2 {[%clk 0:00:36]}  fxg4 {[%clk 0:02:22]} 27. Rxf8+ {[%clk 0:00:31]}  Qxf8 {[%clk 0:02:23]} 28. Bc2 {[%clk 0:00:30]}  Rf6 {[%clk 0:02:21]} 29. Qe2 {[%clk 0:00:24]}  h5 {[%clk 0:02:17]} 30. h4 {[%clk 0:00:20]}  gxh3 {[%clk 0:02:10]} 31. Qxh5 {[%clk 0:00:19]}  Rf1+ {[%clk 0:02:07]} 32. Kh2 {[%clk 0:00:19]}  Rh1+ {[%clk 0:02:06]} 33. Kg3 {[%clk 0:00:16]}  Qg7+ {[%clk 0:01:59]} 0-1


[Site "https://www.chess.com"]

[Event "Titled Tuesday Blitz November 15 Late 2022"]
[White "Mendonca, Mateus Nakajo"]
[Black "Itkis, Boris"]
[WhiteFideId "2110954"]
[BlackFideId "1209167"]
[WhiteElo "2310"]
[BlackElo "2232"]
[Result "1-0"]
[Round "01"]
[TimeControl "180+1"]
[Date "2022.11.16"]
[WhiteClock "0:02:36"]
[BlackClock "0:02:32"]

1. d4 {[%clk 0:03:00]}  d5 {[%clk 0:02:46]} 2. c4 {[%clk 0:02:59]}  dxc4 {[%clk 0:02:46]} 3. Nf3 {[%clk 0:02:56]}  Nf6 {[%clk 0:02:44]} 4. e3 {[%clk 0:02:56]}  a6 {[%clk 0:02:44]} 5. Bxc4 {[%clk 0:02:55]}  e6 {[%clk 0:02:43]} 6. O-O {[%clk 0:02:54]}  b5 {[%clk 0:02:43]} 7. Bb3 {[%clk 0:02:46]}  Bb7 {[%clk 0:02:43]} 8. Nc3 {[%clk 0:02:45]}  Nbd7 {[%clk 0:02:43]} 9. Re1 {[%clk 0:02:37]}  c5 {[%clk 0:02:40]} 10. d5 {[%clk 0:02:36]}  c4 {[%clk 0:02:32]} 11. dxe6 {[%clk 0:02:36]} 1-0


[Site "https://www.chess.com"]

[Event "Titled Tuesday Blitz November 15 Late 2022"]
[White "Mikhalsky, Vladimir"]
[Black "Rustemov, Alexander"]
[WhiteFideId "14144352"]
[BlackFideId "4119002"]
[WhiteElo "2271"]
[BlackElo "2828"]
[Result "0-1"]
[Round "01"]
[TimeControl "180+1"]
[Date "2022.11.16"]
[WhiteClock "0:00:34"]
[BlackClock "0:01:47"]

1. c4 {[%clk 0:02:52]}  g6 {[%clk 0:02:59]} 2. d4 {[%clk 0:02:49]}  Bg7 {[%clk 0:02:59]} 3. e4 {[%clk 0:02:49]}  d6 {[%clk 0:02:59]} 4. Nc3 {[%clk 0:02:48]}  Nc6 {[%clk 0:02:58]} 5. Be3 {[%clk 0:02:45]}  e5 {[%clk 0:02:58]} 6. d5 {[%clk 0:02:46]}  Nd4 {[%clk 0:02:52]} 7. Nge2 {[%clk 0:02:45]}  Nxe2 {[%clk 0:02:51]} 8. Bxe2 {[%clk 0:02:44]}  Bh6 {[%clk 0:02:40]} 9. Bxh6 {[%clk 0:02:32]}  Nxh6 {[%clk 0:02:41]} 10. Qd2 {[%clk 0:02:31]}  Ng8 {[%clk 0:02:38]} 11. O-O-O {[%clk 0:02:28]}  Qe7 {[%clk 0:02:30]} 12. f4 {[%clk 0:02:21]}  exf4 {[%clk 0:02:28]} 13. Qxf4 {[%clk 0:02:20]}  Nf6 {[%clk 0:02:27]} 14. c5 {[%clk 0:02:00]}  O-O {[%clk 0:02:20]} 15. Rhf1 {[%clk 0:01:49]}  Nd7 {[%clk 0:02:19]} 16. cxd6 {[%clk 0:01:49]}  cxd6 {[%clk 0:02:20]} 17. Nb5 {[%clk 0:01:41]}  Ne5 {[%clk 0:02:20]} 18. Qf6 {[%clk 0:01:40]}  Qxf6 {[%clk 0:02:02]} 19. Rxf6 {[%clk 0:01:39]}  Bg4 {[%clk 0:02:02]} 20. Bxg4 {[%clk 0:01:13]}  Nxg4 {[%clk 0:02:03]} 21. Rxd6 {[%clk 0:00:59]}  a6 {[%clk 0:01:59]} 22. Nc3 {[%clk 0:00:53]}  Nxh2 {[%clk 0:01:58]} 23. Rd7 {[%clk 0:00:52]}  b5 {[%clk 0:01:56]} 24. Ne2 {[%clk 0:00:45]}  Ng4 {[%clk 0:01:55]} 25. Nd4 {[%clk 0:00:43]}  Rae8 {[%clk 0:01:49]} 26. Re1 {[%clk 0:00:34]}  Ne5 {[%clk 0:01:47]} 0-1


[Site "https://www.chess.com"]

[Event "Titled Tuesday Blitz November 15 Late 2022"]
[White "Milosevic, Milos"]
[Black "Har-Zvi, Ronen"]
[WhiteFideId "964875"]
[BlackFideId "2801485"]
[WhiteElo "2321"]
[BlackElo "2523"]
[Result "0-1"]
[Round "01"]
[TimeControl "180+1"]
[Date "2022.11.16"]
[WhiteClock "0:00:18"]
[BlackClock "0:01:02"]

1. e4 {[%clk 0:03:00]}  c6 {[%clk 0:02:59]} 2. d4 {[%clk 0:02:59]}  d5 {[%clk 0:02:58]} 3. e5 {[%clk 0:02:59]}  c5 {[%clk 0:02:58]} 4. Nf3 {[%clk 0:02:57]}  Nc6 {[%clk 0:02:57]} 5. dxc5 {[%clk 0:02:48]}  Bg4 {[%clk 0:02:57]} 6. c3 {[%clk 0:02:42]}  e6 {[%clk 0:02:56]} 7. b4 {[%clk 0:02:38]}  Nge7 {[%clk 0:02:56]} 8. Bb5 {[%clk 0:02:30]}  Ng6 {[%clk 0:02:53]} 9. Qa4 {[%clk 0:02:13]}  Qc7 {[%clk 0:02:42]} 10. Nd4 {[%clk 0:02:10]}  Ne7 {[%clk 0:02:36]} 11. f4 {[%clk 0:01:49]}  g6 {[%clk 0:02:32]} 12. O-O {[%clk 0:01:47]}  Bg7 {[%clk 0:02:32]} 13. h3 {[%clk 0:01:42]}  Bf5 {[%clk 0:02:31]} 14. g4 {[%clk 0:01:38]}  Bxb1 {[%clk 0:02:29]} 15. Rxb1 {[%clk 0:01:38]}  O-O {[%clk 0:02:30]} 16. Bd3 {[%clk 0:01:22]}  a6 {[%clk 0:02:27]} 17. Kg2 {[%clk 0:01:18]}  b6 {[%clk 0:02:15]} 18. Nxc6 {[%clk 0:01:15]}  Nxc6 {[%clk 0:02:13]} 19. cxb6 {[%clk 0:01:13]}  Qxb6 {[%clk 0:02:13]} 20. Re1 {[%clk 0:01:08]}  Rfc8 {[%clk 0:02:05]} 21. Be3 {[%clk 0:01:08]}  Qb7 {[%clk 0:02:06]} 22. Kg3 {[%clk 0:01:05]}  Nxe5 {[%clk 0:02:03]} 23. fxe5 {[%clk 0:01:04]}  Rxc3 {[%clk 0:02:02]} 24. Rbd1 {[%clk 0:01:01]}  Bxe5+ {[%clk 0:02:01]} 25. Kf2 {[%clk 0:00:57]}  Qe7 {[%clk 0:01:57]} 26. Kg2 {[%clk 0:00:50]}  Rac8 {[%clk 0:01:57]} 27. Bc5 {[%clk 0:00:39]}  Qf6 {[%clk 0:01:51]} 28. Rf1 {[%clk 0:00:36]}  Qh4 {[%clk 0:01:47]} 29. Bf2 {[%clk 0:00:35]}  Qg5 {[%clk 0:01:47]} 30. Bxa6 {[%clk 0:00:31]}  Qf4 {[%clk 0:01:42]} 31. Rh1 {[%clk 0:00:22]}  Qf3+ {[%clk 0:01:41]} 32. Kg1 {[%clk 0:00:23]}  Rc2 {[%clk 0:01:35]} 33. Rf1 {[%clk 0:00:21]}  Rxf2 {[%clk 0:01:12]} 34. Rxf2 {[%clk 0:00:22]}  Rc1+ {[%clk 0:01:01]} 35. Bf1 {[%clk 0:00:20]}  Qg3+ {[%clk 0:01:02]} 36. Rg2 {[%clk 0:00:18]}  Bd4# {[%clk 0:01:02]} 0-1


[Site "https://www.chess.com"]

[Event "Titled Tuesday Blitz November 15 Late 2022"]
[White "Moore, Alex"]
[Black "Guzman, Christopher"]
[WhiteFideId "30910692"]
[BlackFideId "6405096"]
[WhiteElo "2113"]
[BlackElo "2272"]
[Result "0-1"]
[Round "01"]
[TimeControl "180+1"]
[Date "2022.11.16"]
[WhiteClock "0:01:35"]
[BlackClock "0:02:36"]

1. d4 {[%clk 0:02:58]}  d5 {[%clk 0:02:59]} 2. c4 {[%clk 0:02:58]}  e6 {[%clk 0:02:56]} 3. Nc3 {[%clk 0:02:56]}  Nf6 {[%clk 0:02:56]} 4. cxd5 {[%clk 0:02:56]}  Nxd5 {[%clk 0:02:55]} 5. e4 {[%clk 0:02:55]}  Nxc3 {[%clk 0:02:55]} 6. bxc3 {[%clk 0:02:56]}  Be7 {[%clk 0:02:56]} 7. Nf3 {[%clk 0:02:52]}  c5 {[%clk 0:02:56]} 8. Bd3 {[%clk 0:02:48]}  O-O {[%clk 0:02:56]} 9. O-O {[%clk 0:02:47]}  cxd4 {[%clk 0:02:56]} 10. cxd4 {[%clk 0:02:46]}  Nc6 {[%clk 0:02:57]} 11. Be3 {[%clk 0:02:40]}  b6 {[%clk 0:02:57]} 12. a3 {[%clk 0:02:30]}  Bb7 {[%clk 0:02:57]} 13. Rc1 {[%clk 0:02:17]}  Bxa3 {[%clk 0:02:55]} 14. Ra1 {[%clk 0:02:09]}  Bb2 {[%clk 0:02:50]} 15. Ra2 {[%clk 0:02:08]}  Bxd4 {[%clk 0:02:49]} 16. Bg5 {[%clk 0:02:03]}  Bf6 {[%clk 0:02:45]} 17. Bf4 {[%clk 0:01:56]}  Nb4 {[%clk 0:02:44]} 18. Rd2 {[%clk 0:01:54]}  Nxd3 {[%clk 0:02:44]} 19. Rxd3 {[%clk 0:01:55]}  Qc8 {[%clk 0:02:42]} 20. e5 {[%clk 0:01:46]}  Be7 {[%clk 0:02:42]} 21. Ng5 {[%clk 0:01:35]}  h6 {[%clk 0:02:36]} 0-1


[Site "https://www.chess.com"]